bitfinex-derivatives/quotes_SOLF0:USTF0_20251020
["timestamp","ask_amount","ask_price","bid_price","bid_amount"]
[1760956746759,4.6572,193.2,193.16,2.83]
[1760956746956,4.6575,193.19,193.16,2.83]
[1760956747157,6.80000475,193.19,193.13,2.83]
[1760956748355,4.6577,193.18,193.14,2.83]
[1760956748555,8.17602046,193.22,193.1,7.4894]
[1760956748764,4.6581,193.16,193.1,7.4894]
[1760956750150,4.6581,193.16,193.12,2.83]
[1760956750358,4.6577,193.18,193.12,2.83]
[1760956751065,4.6577,193.18,193.12,9.63140475]
[1760956751252,4.6577,193.18,193.12,4.97250475]
[1760956751567,2.14250475,193.17,193.08,2.83]
[1760956751764,2.14250475,193.15,193.08,2.83]
[1760956752066,4.659,193.13,193.09,2.83]
[1760956752262,2.14250475,193.13,193.06,2.83]
[1760956752658,2.14250475,193.11,193.06,2.83]
[1760956752864,2.14250475,193.11,193.03,2.83]
[1760956753256,4.6599,193.09,193.03,4.6611]
[1760956753457,4.6599,193.09,193.05,2.85]
[1760956753858,4.6599,193.09,193.04,2.85]
[1760956754059,4.6599,193.09,193.05,2.85]
[1760956756961,4.6599,193.09,193.04,2.85]
[1760956757167,4.6594,193.11,193.05,2.14250475]
[1760956757556,4.6594,193.11,193.05,4.78250475]
[1760956757760,4.6597,193.1,193.05,4.78250475]
[1760956757967,2.14250475,193.11,193.05,2.64]
[1760956759070,4.6599,193.09,193.05,2.64]
[1760956762470,4.6599,193.09,193.06,2.64]
[1760956765170,4.6599,193.09,193.03,7.3011]
[1760956765373,2.14250475,193.12,193.04,2.64]
[1760956765569,2.14250475,193.1,193.04,2.64]
[1760956766275,4.6604,193.07,193.04,2.64]
[1760956766574,4.6604,193.07,193.03,2.64]
[1760956768272,4.6604,193.07,193.02,6.80390475]
[1760956768775,4.6606,193.06,193.03,2.64]
[1760956769362,4.6606,193.06,193.04,2.64]
[1760956772071,4.6606,193.06,193.02,2.14250475]
[1760956772276,4.6606,193.06,193.03,2.64]
[1760956773980,4.6606,193.06,193.02,2.64]
[1760956774174,4.6606,193.06,193.03,2.64]
[1760956774369,4.6606,193.06,193.02,4.78250475]
[1760956774675,2.14250475,193.1,193.03,2.64]
[1760956775274,4.6604,193.07,193.03,2.64]
[1760956775871,4.6604,193.07,193.02,6.80390475]
[1760956776167,4.6604,193.07,193.03,2.64]
[1760956776975,4.6604,193.07,193.02,2.14250475]
[1760956777282,4.6604,193.07,193.03,2.64]
[1760956778083,4.6604,193.07,193.02,2.14250475]
[1760956778576,4.6604,193.07,193.03,2.64]
[1760956778774,4.6604,193.07,193.02,2.14250475]
[1760956779079,4.6604,193.07,193.02,2.64]
[1760956780182,4.6604,193.07,193.03,2.64]
[1760956780687,4.6606,193.06,193.03,2.64]
[1760956781093,4.6606,193.06,193.02,2.64]
[1760956781294,4.6606,193.06,193.01,4.6616]
[1760956781791,4.6606,193.06,193.02,2.64]
[1760956782092,4.6606,193.06,193.01,4.6616]
[1760956782294,4.6606,193.06,193.03,2.64]
[1760956782498,4.6606,193.06,193.02,2.64]
[1760956782889,27.0,193.13,192.96,2.64]
[1760956783093,2.14250475,193.03,192.96,2.64]
[1760956783392,4.6624,192.99,192.93,2.64]
[1760956783791,2.14250475,193.01,192.93,2.64]
[1760956783987,3.83561647,193.09,192.96,2.14250475]
[1760956784186,249.175,193.26,192.88,10.49738806]
[1760956784187,4.83169233,193.17,192.99,2.64]
[1760956784382,2.14250475,193.12,193.03,2.64]
[1760956784595,2.14250475,193.1,193.03,2.64]
[1760956784798,6.80260475,193.08,193.03,2.64]
[1760956785090,6.80260475,193.08,193.02,35.96]
[1760956785482,4.6604,193.07,193.02,35.96]
[1760956785790,4.6604,193.07,193.02,38.6]
[1760956785991,4.6606,193.06,193.02,38.6]
[1760956786589,2.14250475,193.03,192.94,9.59560003]
[1760956786787,2.14250475,192.97,192.92,2.64]
[1760956786993,2.14250475,192.97,192.9,2.64]
[1760956787400,2.14250475,192.95,192.88,2.83]
[1760956788400,4.6635,192.94,192.88,2.83]
[1760956788597,2.14250475,192.95,192.88,2.83]
[1760956788898,2.14250475,192.92,192.88,2.83]
[1760956789095,6.80580475,192.95,192.88,2.83]
[1760956789297,2.14250475,192.95,192.88,2.83]
[1760956789505,2.14250475,193.01,192.91,2.14250475]
[1760956789799,2.14250475,193.01,192.92,2.83]
[1760956790999,4.6622,192.99,192.92,7.4937]
[1760956792903,4.6622,192.99,192.93,2.14250475]
[1760956793601,4.6622,192.99,192.92,7.4937]
[1760956796892,4.6622,192.99,192.93,2.83]
[1760956797103,4.6627,192.97,192.93,2.83]
[1760956798207,27.0,193.05,192.9,4.6644]
[1760956798208,4.6623,192.99,192.92,2.83]
[1760956798405,4.6623,192.99,192.92,2.14250475]
[1760956798704,4.6623,192.99,192.93,2.83]
[1760956801206,27.0,193.05,192.88,3.3555526]
[1760956801506,3.3555526,193.04,192.92,2.83]
[1760956802006,4.6621,193.0,192.92,7.4938]
[1760956803512,4.6623,192.99,192.92,7.4938]
[1760956806919,4.6626,192.98,192.92,7.4938]
[1760956807214,3.3555526,193.01,192.92,2.83]
[1760956808016,4.6627,192.97,192.87,2.83]
[1760956809017,4.6627,192.97,192.91,2.83]
[1760956809311,4.6623,192.99,192.91,2.83]
[1760956809712,4.6623,192.99,192.94,2.83]
[1760956809915,4.6623,192.99,192.95,2.83]
[1760956810811,8.0173526,193.01,192.94,7.4933]
[1760956811010,3.3555526,193.04,192.94,2.83]
[1760956812113,4.6619,193.0,192.94,7.4933]
[1760956813305,27.0,193.06,192.94,2.83]
[1760956813510,27.0,193.06,192.93,2.62]
[1760956813511,30.3555526,193.06,192.93,2.62]
[1760956815121,4.6616,193.02,192.97,2.62]
[1760956815416,4.6616,193.02,192.98,2.62]
[1760956816112,4.6611,193.04,192.97,7.2826]
[1760956816316,3.3555526,193.1,192.93,2.62]
[1760956816623,3.3555526,193.1,192.96,2.62]
[1760956816810,4.6604,193.07,193.01,7.2815]
[1760956817411,3.3555526,193.1,193.02,7.3212]
[1760956817412,4.6599,193.09,193.02,7.3212]
[1760956818013,3.3555526,193.1,193.03,4.661]
[1760956818516,4.6599,193.09,193.02,2.66]
[1760956818720,3.3555526,193.1,193.02,2.66]
[1760956819124,4.6604,193.07,193.02,2.66]
[1760956819523,15.3053127,193.15,192.98,2.66]
[1760956819711,4.6601,193.08,193.02,4.6613]
[1760956819909,4.6601,193.08,193.04,2.66]
[1760956821920,4.6601,193.08,193.0,60.0]
[1760956822117,4.6604,193.07,193.0,67.3219]
[1760956822319,4.6604,193.07,193.01,2.66]
[1760956824124,4.6604,193.07,193.01,7.3216]
[1760956824321,4.6608,193.05,193.0,60.0]
[1760956824516,4.6608,193.05,193.01,2.66]
[1760956824919,4.6604,193.07,193.01,2.66]
[1760956828431,4.6604,193.07,193.01,7.3216]
[1760956833836,3.3555526,193.08,192.99,4.662]
[1760956834733,4.6613,193.03,192.99,2.66]
[1760956837435,4.6615,193.02,192.99,2.66]
[1760956837634,3.3555526,193.05,192.98,43.06]
[1760956838038,4.6615,193.02,192.98,45.72]
[1760956838740,4.6615,193.02,192.98,43.06]
[1760956838928,4.6615,193.02,192.99,2.66]
[1760956839129,4.6618,193.01,192.99,2.66]
[1760956839336,3.3555526,193.05,192.98,43.06]
[1760956840135,4.662,193.0,192.98,43.06]
[1760956840530,3.3555526,193.02,192.93,43.02]
[1760956840935,3.3555526,192.99,192.93,43.02]
[1760956842741,4.6633,192.95,192.93,43.02]
[1760956843537,4.6637,192.93,192.88,2.66]
[1760956843842,4.6637,192.93,192.89,2.66]
[1760956844030,4.6637,192.93,192.88,43.02]
[1760956844236,4.6637,192.93,192.88,45.7]
[1760956844538,4.6637,192.93,192.88,43.04]
[1760956845042,4.6637,192.93,192.89,2.66]
[1760956845242,4.6637,192.93,192.88,43.04]
[1760956845442,4.6637,192.93,192.89,2.66]
[1760956845642,4.663,192.96,192.89,2.66]
[1760956846243,4.6633,192.95,192.89,2.66]
[1760956846847,4.6636,192.94,192.89,2.66]
[1760956847042,4.6636,192.94,192.88,43.04]
[1760956847441,4.6636,192.94,192.89,2.78]
[1760956847643,4.6636,192.94,192.88,43.04]
[1760956847846,4.6636,192.94,192.89,2.78]
[1760956848242,4.6636,192.94,192.88,45.82]
[1760956849935,4.663,192.96,192.89,2.78]
[1760956850150,3.3555526,193.02,192.89,2.78]
[1760956850740,4.6633,192.95,192.89,2.78]
[1760956852546,4.6633,192.95,192.89,7.4445]
[1760956852945,4.6633,192.95,192.89,4.6645]
[1760956853347,4.6633,192.95,192.9,2.78]
[1760956854054,4.6633,192.95,192.89,4.6645]
[1760956854350,4.6633,192.95,192.9,2.78]
[1760956854548,4.6633,192.95,192.91,2.78]
[1760956854743,4.6633,192.95,192.9,2.78]
[1760956854945,4.6633,192.95,192.89,4.6645]
[1760956855149,4.6633,192.95,192.9,2.78]
[1760956855349,4.6633,192.95,192.91,2.78]
[1760956855550,4.6633,192.95,192.9,2.78]
[1760956856658,4.6635,192.94,192.89,2.78]
[1760956856956,3.3555526,192.99,192.88,45.82]
[1760956857953,3.3555526,192.96,192.88,45.82]
[1760956858556,4.6638,192.93,192.88,45.82]
[1760956858759,4.6638,192.93,192.89,2.78]
[1760956859257,4.664,192.92,192.89,2.78]
[1760956860557,3.3555526,192.98,192.88,43.04]
[1760956861660,4.6645,192.9,192.85,4.6655]
[1760956861863,4.6645,192.9,192.86,2.78]
[1760956862563,4.6645,192.9,192.87,2.78]
[1760956862864,2.14948399,192.91,192.84,43.04]
[1760956863953,4.665,192.88,192.84,43.04]
[1760956864760,4.665,192.88,192.85,2.78]
[1760956865166,4.665,192.88,192.84,43.04]
[1760956865767,4.665,192.88,192.85,2.78]
[1760956865958,4.665,192.88,192.84,43.04]
[1760956866760,4.665,192.88,192.85,2.78]
[1760956867160,4.665,192.88,192.84,43.04]
[1760956867670,4.665,192.88,192.83,43.04]
[1760956868458,4.665,192.88,192.84,2.78]
[1760956868664,4.665,192.88,192.83,43.04]
[1760956869365,4.665,192.88,192.84,2.78]
[1760956869670,4.665,192.88,192.83,43.04]
[1760956869867,2.14948399,192.93,192.83,43.04]
[1760956869868,4.6645,192.9,192.84,2.78]
[1760956870171,4.6645,192.9,192.84,2.14948399]
[1760956870465,4.664,192.92,192.86,2.78]
[1760956870871,4.664,192.92,192.87,2.78]
[1760956871092,2.14948399,192.97,192.88,2.78]
[1760956871377,2.14948399,192.97,192.89,2.78]
[1760956871763,4.6638,192.93,192.89,2.78]
[1760956871961,2.14948399,192.95,192.86,2.78]
[1760956872163,2.14948399,192.93,192.86,2.78]
[1760956872360,4.665,192.88,192.85,17.3]
[1760956872565,4.665,192.88,192.85,20.08]
[1760956872966,4.665,192.88,192.86,4.92948399]
[1760956873166,4.665,192.88,192.86,2.14948399]
[1760956875371,2.14948399,192.94,192.83,2.78]
[1760956875569,2.14948399,192.94,192.8,4.6667]
[1760956875570,2.14948399,192.92,192.84,2.14948399]
[1760956875976,9.3274,192.93,192.84,2.14948399]
[1760956876879,9.3274,192.93,192.86,2.14948399]
[1760956877075,9.3274,192.93,192.83,2.81]
[1760956877276,9.3274,192.93,192.86,2.14948399]
[1760956877478,9.3274,192.93,192.88,2.14948399]
[1760956877772,9.3274,192.93,192.86,2.14948399]
[1760956878270,4.6651,192.87,192.86,2.14948399]
[1760956879072,1.04,192.87,192.83,2.14948399]
[1760956879265,2.14948399,192.9,192.79,2.78]
[1760956879468,2.14948399,192.9,192.82,2.14948399]
[1760956879469,4.6661,192.84,192.82,2.14948399]
[1760956883579,2.14948399,192.88,192.76,2.78]
[1760956883884,2.14948399,192.88,192.78,2.14948399]
[1760956884072,4.6669,192.8,192.78,2.14948399]
[1760956885387,4.6673,192.78,192.76,4.92948399]
[1760956885689,4.6673,192.78,192.76,2.14948399]
[1760956887183,2.14948399,192.84,192.74,45.86]
[1760956887382,19.36589423,192.89,192.73,2.14948399]
[1760956887383,2.14948399,192.82,192.73,2.14948399]
[1760956888684,4.6683,192.74,192.73,2.14948399]
[1760956888887,2.14948399,192.8,192.71,4.92948399]
[1760956889283,2.14948399,192.8,192.71,2.78]
[1760956889488,2.14948399,192.8,192.71,4.92948399]
[1760956889695,4.6684,192.74,192.71,4.92948399]
[1760956890384,4.6684,192.74,192.72,2.78]
[1760956890585,4.6684,192.74,192.72,4.92948399]
[1760956890786,4.6684,192.74,192.72,2.14948399]
[1760956890985,4.6684,192.74,192.72,4.92948399]
[1760956891189,2.14948399,192.84,192.73,2.78]
[1760956891388,2.14948399,192.84,192.76,4.92948399]
[1760956891793,2.14948399,192.84,192.74,2.14948399]
[1760956893002,4.6677,192.77,192.74,2.14948399]
[1760956893189,4.6677,192.77,192.75,2.78]
[1760956894194,4.668,192.76,192.74,2.14948399]
[1760956894398,4.668,192.76,192.73,2.78]
[1760956895391,4.6681,192.75,192.73,2.78]
[1760956896898,4.6681,192.75,192.72,2.14948399]
[1760956896899,4.6681,192.75,192.72,4.92948399]
[1760956897095,4.6684,192.74,192.66,4.6701]
[1760956897294,4.6684,192.74,192.7,4.92948399]
[1760956897705,4.6684,192.74,192.71,2.78]
[1760956898306,4.6687,192.73,192.71,2.78]
[1760956899396,4.6687,192.73,192.7,2.14948399]
[1760956899602,4.6687,192.73,192.71,2.78]
[1760956900008,4.6696,192.69,192.57,9.63311471]
[1760956900305,4.6696,192.69,192.65,2.14948399]
[1760956900504,4.6696,192.69,192.66,2.78]
[1760956900803,4.6696,192.69,192.65,2.14948399]
[1760956901106,4.6696,192.69,192.66,2.78]
[1760956901310,4.6696,192.69,192.65,2.14948399]
[1760956901609,4.6696,192.69,192.66,2.78]
[1760956902508,4.6696,192.69,192.65,2.14948399]
[1760956903208,4.6696,192.69,192.66,2.78]
[1760956903404,4.6696,192.69,192.65,2.14948399]
[1760956903605,4.6691,192.71,192.66,2.78]
[1760956903799,4.6691,192.71,192.68,2.78]
[1760956904006,4.6686,192.73,192.68,2.78]
[1760956904306,4.6686,192.73,192.7,2.78]
[1760956907106,4.6681,192.75,192.69,2.78]
[1760956907412,4.6681,192.75,192.71,2.67]
[1760956907605,2.14948399,192.81,192.73,2.67]
[1760956908305,2.14948399,192.82,192.73,2.67]
[1760956908912,2.14948399,192.82,192.75,2.14948399]
[1760956909110,4.6678,192.76,192.73,2.14948399]
[1760956909810,4.6674,192.78,192.74,2.67]
[1760956910200,4.6674,192.78,192.76,2.67]
[1760956910797,15.64779513,192.87,192.75,2.14948399]
[1760956910798,4.6669,192.8,192.75,2.14948399]
[1760956910999,4.6669,192.8,192.76,2.67]
[1760956912313,4.6672,192.79,192.75,2.67]
[1760956912806,2.14948399,192.84,192.75,2.67]
[1760956913005,3.8259297,192.86,192.75,4.81948399]
[1760956913207,2.14948399,192.86,192.78,2.67]
[1760956913409,16.65580922,192.95,192.79,2.14948399]
[1760956913410,2.14948399,192.88,192.79,2.14948399]
[1760956913801,4.6657,192.85,192.79,2.14948399]
[1760956914000,4.6657,192.85,192.79,4.81948399]
[1760956914205,2.14948399,192.86,192.76,2.14948399]
[1760956914412,2.14948399,192.83,192.76,2.14948399]
[1760956914916,2.14948399,192.85,192.76,2.14948399]
[1760956915102,4.6664,192.82,192.76,2.14948399]
[1760956916107,4.6659,192.84,192.76,6.81718399]
[1760956916306,4.6659,192.84,192.78,2.14948399]
[1760956917210,4.6659,192.84,192.79,2.67]
[1760956917404,4.6659,192.84,192.78,4.81948399]
[1760956920014,4.6653,192.87,192.81,2.67]
[1760956920220,4.6653,192.87,192.83,2.67]
[1760956920717,4.6646,192.89,192.84,2.14948399]
[1760956921021,5.99050571,192.93,192.84,4.81948399]
[1760956921516,4.6652,192.87,192.84,4.81948399]
[1760956922011,4.6652,192.87,192.84,2.67]
[1760956922216,4.6647,192.89,192.84,2.67]
[1760956922417,4.6647,192.89,192.83,2.67]
[1760956922624,4.6647,192.89,192.84,4.81948399]
[1760956922819,4.6647,192.89,192.84,2.67]
[1760956923209,4.6647,192.89,192.81,3.35899056]
[1760956923413,4.6642,192.91,192.83,2.67]
[1760956923815,4.6642,192.91,192.85,2.67]
[1760956924219,4.6638,192.93,192.85,2.67]
[1760956924919,4.6638,192.93,192.86,2.67]
[1760956925321,4.6638,192.93,192.86,7.3352]
[1760956925618,3.35899056,193.02,192.88,2.67]
[1760956925825,7.17733723,193.02,192.91,2.67]
[1760956926013,7.17733723,193.02,192.9,6.02899056]
[1760956926512,3.35899056,192.99,192.9,2.67]
[1760956926718,3.35899056,192.96,192.84,6.02899056]
[1760956926923,3.35899056,192.96,192.84,2.67]
[1760956927225,4.6645,192.9,192.84,2.67]
[1760956928518,4.6648,192.89,192.81,3.35899056]
[1760956928717,3.35899056,192.93,192.82,2.67]
[1760956929516,3.35899056,192.95,192.82,2.67]
[1760956930724,4.6648,192.89,192.82,7.3361]
[1760956933024,4.665,192.88,192.82,2.67]
[1760956933326,3.35899056,192.92,192.82,2.67]
[1760956933525,3.35899056,192.92,192.78,8.02619056]
[1760956933729,3.35899056,192.92,192.79,2.7]
[1760956934128,4.6657,192.85,192.79,2.7]
[1760956935232,4.6652,192.87,192.8,4.6667]
[1760956935534,3.35899056,192.95,192.82,2.7]
[1760956936732,3.35899056,192.98,192.85,2.7]
[1760956936932,7.16807337,192.98,192.85,2.7]
[1760956937130,3.35899056,192.98,192.85,2.7]
[1760956937425,4.6636,192.94,192.88,2.84]
[1760956938329,18.4,192.99,192.88,2.84]
[1760956938530,3.35899056,193.01,192.88,2.84]
[1760956939934,7.16434606,193.01,192.88,2.84]
[1760956940338,4.6638,192.93,192.88,2.84]
[1760956941344,4.6638,192.93,192.87,3.35899056]
[1760956941731,4.6638,192.93,192.88,2.84]
[1760956941931,4.6638,192.93,192.87,3.35899056]
[1760956942638,4.6638,192.93,192.88,2.84]
[1760956944038,4.6638,192.93,192.87,8.02399056]
[1760956944735,4.6638,192.93,192.88,2.84]
[1760956945036,4.6638,192.93,192.87,8.02399056]
[1760956945240,4.6638,192.93,192.88,2.84]
[1760956945938,4.6638,192.93,192.87,8.02399056]
[1760956946727,4.6638,192.93,192.88,2.84]
[1760956946928,4.6638,192.93,192.87,8.02399056]
[1760956947127,4.6638,192.93,192.88,2.84]
[1760956947332,4.6638,192.93,192.87,8.02399056]
[1760956947532,4.6638,192.93,192.88,2.84]
[1760956947737,4.6638,192.93,192.87,8.02399056]
[1760956947927,4.6638,192.93,192.88,2.84]
[1760956948130,4.6638,192.93,192.87,8.02399056]
[1760956948330,4.664,192.92,192.88,2.84]
[1760956948830,3.35899056,192.98,192.85,3.35899056]
[1760956949035,3.35899056,192.95,192.84,2.84]
[1760956949935,3.35899056,192.98,192.81,2.84]
[1760956949936,3.35899056,192.92,192.81,2.84]
[1760956950541,4.6655,192.86,192.8,2.84]
[1760956951632,4.6657,192.85,192.8,2.84]
[1760956952638,4.6657,192.85,192.79,3.35899056]
[1760956952833,4.6657,192.85,192.8,2.84]
[1760956953039,4.6657,192.85,192.79,6.19899056]
[1760956953337,4.6659,192.84,192.79,3.35899056]
[1760956954243,3.35899056,192.92,192.79,3.35899056]
[1760956954244,4.6662,192.83,192.8,2.84]
[1760956954544,3.35899056,192.89,192.77,2.84]
[1760956955644,3.35899056,192.89,192.77,7.5073]
[1760956956447,4.6658,192.85,192.77,7.5073]
[1760956956643,3.35899056,192.89,192.77,7.5073]
[1760956956844,4.6662,192.83,192.77,7.5073]
[1760956957441,4.6652,192.87,192.81,2.84]
[1760956957645,9.3268,192.95,192.81,2.84]
[1760956957646,11.57231133,192.94,192.81,2.84]
[1760956957841,4.6662,192.83,192.77,2.84]
[1760956958546,4.6662,192.83,192.79,2.84]
[1760956958747,4.6662,192.83,192.78,3.35899056]
[1760956958948,4.6664,192.82,192.79,2.84]
[1760956959546,4.6664,192.82,192.78,3.35899056]
[1760956959744,4.6664,192.82,192.79,2.84]
[1760956960044,4.6664,192.82,192.78,3.35899056]
[1760956960344,4.6664,192.82,192.79,2.84]
[1760956960648,4.6664,192.82,192.78,3.35899056]
[1760956961050,4.6664,192.82,192.79,2.84]
[1760956961247,4.6664,192.82,192.78,3.35899056]
[1760956961554,4.6664,192.82,192.79,2.84]
[1760956961946,4.6664,192.82,192.75,4.6679]
[1760956961947,4.6669,192.8,192.75,3.35899056]
[1760956962144,4.6669,192.8,192.76,2.84]
[1760956962339,4.6669,192.8,192.75,3.35899056]
[1760956962544,4.6669,192.8,192.76,2.84]
[1760956962845,4.6664,192.82,192.76,2.84]
[1760956963350,3.35899056,192.88,192.76,2.84]
[1760956963550,4.6669,192.8,192.76,2.84]
[1760956963756,4.6669,192.8,192.75,4.6679]
[1760956963757,4.6669,192.8,192.77,2.84]
[1760956964352,4.6664,192.82,192.77,2.84]
[1760956964742,3.35899056,192.88,192.77,2.84]
[1760956964938,7.17416328,192.88,192.77,2.84]
[1760956966550,7.17416328,192.88,192.75,4.6679]
[1760956966551,4.6664,192.82,192.76,2.84]
[1760956967842,3.81406462,192.87,192.76,2.84]
[1760956968046,4.6667,192.81,192.76,2.84]
[1760956968247,4.6667,192.81,192.75,4.6679]
[1760956968852,4.6669,192.8,192.76,2.85]
[1760956969046,3.81406462,192.87,192.74,3.35899056]
[1760956969254,3.35899056,192.85,192.73,2.85]
[1760956969556,4.6676,192.77,192.73,2.85]
[1760956969748,4.6676,192.77,192.7,3.35899056]
[1760956969944,4.6676,192.77,192.71,2.85]
[1760956970348,3.35899056,192.82,192.7,6.20899056]
[1760956970561,3.35899056,192.82,192.7,2.85]
[1760956970857,4.6682,192.75,192.69,2.85]
[1760956971346,4.6684,192.74,192.68,46.45899056]
[1760956971551,3.35899056,192.82,192.68,49.30899056]
[1760956972051,4.6684,192.74,192.68,45.95]
[1760956973247,9.3333,192.81,192.68,45.95]
[1760956973454,4.6678,192.76,192.7,2.85]
[1760956973842,4.6681,192.75,192.7,2.85]
[1760956974041,4.6681,192.75,192.69,3.35899056]
[1760956974241,4.6681,192.75,192.7,2.85]
[1760956974651,4.6684,192.74,192.7,2.85]
[1760956974842,9.3328,192.82,192.7,2.85]
[1760956977952,4.6681,192.75,192.69,3.35899056]
[1760956978258,4.6681,192.75,192.7,2.85]
[1760956978443,4.6681,192.75,192.69,3.35899056]
[1760956978858,4.6681,192.75,192.7,2.85]
[1760956979549,4.6681,192.75,192.69,3.35899056]
[1760956979749,4.6681,192.75,192.7,2.85]
[1760956979947,4.6681,192.75,192.69,3.35899056]
[1760956980251,3.35899056,192.83,192.63,17.15401471]
[1760956980454,3.35899056,192.77,192.64,2.85]
[1760956981144,4.6694,192.7,192.64,2.85]
[1760956981560,3.35899056,192.77,192.64,2.85]
[1760956981754,3.35899056,192.77,192.58,0.90308684]
[1760956981755,3.35899056,192.74,192.61,2.85]
[1760956982469,9.3371,192.73,192.61,2.85]
[1760956982660,11.49120625,192.73,192.64,2.15410625]
[1760956983853,4.6701,192.67,192.64,2.15410625]
[1760956984154,4.6701,192.67,192.64,2.85]
[1760956985365,4.6703,192.66,192.63,2.85]
[1760956985664,4.6703,192.66,192.62,2.15410625]
[1760956985866,4.6703,192.66,192.63,2.85]
[1760956986257,4.6703,192.66,192.62,2.15410625]
[1760956986453,4.6703,192.66,192.63,2.85]
[1760956986658,2.15410625,192.69,192.6,2.15410625]
[1760956987367,4.6705,192.65,192.61,2.85]
[1760956987558,4.6705,192.65,192.63,2.85]
[1760956987757,4.67,192.67,192.62,2.15410625]
[1760956987956,2.15410625,192.71,192.63,2.85]
[1760956989159,4.6704,192.66,192.63,2.85]
[1760956990556,2.15410625,192.7,192.59,2.85]
[1760956990759,2.15410625,192.68,192.6,2.15410625]
[1760956990956,2.15410625,192.68,192.59,2.85]
[1760956991366,2.15410625,192.68,192.58,2.15410625]
[1760956991568,2.15410625,192.66,192.59,2.85]
[1760956991972,2.15410625,192.68,192.6,2.15410625]
[1760956993871,2.15410625,192.68,192.59,2.85]
[1760956994171,2.15410625,192.68,192.59,5.00410625]
[1760956994367,2.15410625,192.68,192.59,2.85]
[1760956995073,4.671,192.63,192.58,2.15410625]
[1760956996075,4.671,192.63,192.59,2.67]
[1760956996577,4.671,192.63,192.58,2.15410625]
[1760956996763,15.77038331,192.74,192.58,2.15410625]
[1760956996969,244.0,192.87,192.63,2.67]
[1760956996970,2.15410625,192.72,192.63,2.67]
[1760956997874,2.15410625,192.72,192.64,2.15410625]
[1760956998369,2.15410625,192.72,192.63,2.67]
[1760956998971,4.6698,192.68,192.63,2.67]
[1760956999276,4.6698,192.68,192.62,2.15410625]
[1760956999479,4.6698,192.68,192.63,2.7]
[1760956999774,4.6698,192.68,192.62,2.15410625]
[1760957001081,4.6698,192.68,192.63,2.7]
[1760957001583,4.6698,192.68,192.62,2.15410625]
[1760957002172,4.6691,192.71,192.64,2.15410625]
[1760957002378,4.6691,192.71,192.67,2.7]
[1760957002574,4.6691,192.71,192.66,2.15410625]
[1760957004281,4.6694,192.7,192.66,2.15410625]
[1760957004682,2.15410625,192.74,192.66,2.7]
[1760957004880,4.6694,192.7,192.66,2.7]
[1760957005284,4.6694,192.7,192.65,2.15410625]
[1760957005480,4.6694,192.7,192.66,2.7]
[1760957006391,4.6694,192.7,192.65,2.15410625]
[1760957006585,4.6694,192.7,192.66,2.7]
[1760957006891,2.15410625,192.72,192.63,2.15410625]
[1760957007089,15.18381418,192.78,192.63,2.15410625]
[1760957007284,2.15410625,192.71,192.63,2.15410625]
[1760957007485,4.6698,192.68,192.64,2.7]
[1760957007888,4.6698,192.68,192.63,2.15410625]
[1760957008294,4.6698,192.68,192.64,2.7]
[1760957008787,4.6698,192.68,192.63,2.15410625]
[1760957009692,4.6698,192.68,192.64,2.7]
[1760957009891,4.6701,192.67,192.64,2.7]
[1760957010288,4.6701,192.67,192.63,2.15410625]